bitfinex/quotes_BTCUSD_20230906
["timestamp","ask_amount","ask_price","bid_price","bid_amount"]
[1694004426620,1.03168161,25734.0,25733.0,82.14270606]
[1694004426798,1.03144161,25734.0,25733.0,82.14270606]
[1694004426994,1.02784161,25734.0,25733.0,82.14270606]
[1694004427321,1.02784161,25734.0,25733.0,82.91991806]
[1694004427322,1.02826161,25734.0,25733.0,82.91991806]
[1694004427523,1.02844161,25734.0,25733.0,82.91991806]
[1694004427725,1.02976161,25734.0,25733.0,82.91991806]
[1694004427927,1.03186161,25734.0,25733.0,82.91991806]
[1694004428107,1.03246161,25734.0,25733.0,82.91991806]
[1694004428317,1.04248161,25734.0,25733.0,81.36549406]
[1694004428659,1.04614161,25734.0,25733.0,81.36549406]
[1694004428847,1.04182161,25734.0,25733.0,81.36549406]
[1694004429072,1.04098161,25734.0,25733.0,81.36549406]
[1694004429476,1.04104161,25734.0,25733.0,81.36549406]
[1694004429658,1.04092161,25734.0,25733.0,81.36549406]
[1694004429829,1.04098161,25734.0,25733.0,81.36549406]
[1694004430038,1.03492161,25734.0,25733.0,82.14270606]
[1694004430240,1.03390161,25734.0,25733.0,82.14270606]
[1694004430584,1.03444161,25734.0,25733.0,81.36549406]
[1694004430785,1.03510161,25734.0,25733.0,81.36549406]
[1694004430984,1.03516161,25734.0,25733.0,81.36549406]
[1694004431120,1.03528161,25734.0,25733.0,81.36549406]
[1694004431328,1.03216161,25734.0,25733.0,82.14270606]
[1694004431551,1.03126161,25734.0,25733.0,82.14270606]
[1694004431784,1.02934161,25734.0,25733.0,82.14270606]
[1694004432115,1.03102161,25734.0,25733.0,82.14270606]
[1694004432319,1.02976161,25734.0,25733.0,82.91991806]
[1694004432521,1.03054161,25734.0,25733.0,82.91991806]
[1694004432702,1.03168161,25734.0,25733.0,82.14270606]
[1694004432997,1.03180161,25734.0,25733.0,82.14270606]
[1694004433227,1.03186161,25734.0,25733.0,82.14270606]
[1694004433407,1.03162161,25734.0,25733.0,82.14270606]
[1694004433615,1.03174161,25734.0,25733.0,82.14270606]
[1694004433818,1.03366161,25734.0,25733.0,82.14270606]
[1694004434050,1.03420161,25734.0,25733.0,82.14270606]
[1694004434253,0.99426161,25734.0,25733.0,82.14270606]
[1694004434454,1.31352183,25734.0,25733.0,82.14270606]
[1694004434613,1.31382183,25734.0,25733.0,82.14270606]
[1694004434815,1.31388183,25734.0,25733.0,82.14270606]
[1694004435036,1.31394183,25734.0,25733.0,82.14270606]
[1694004435499,1.31400183,25734.0,25733.0,82.14270606]
[1694004435660,1.31370183,25734.0,25733.0,82.14270606]
[1694004435831,1.31376183,25734.0,25733.0,82.14270606]
[1694004436202,1.31388183,25734.0,25733.0,82.14270606]
[1694004436401,1.31376183,25734.0,25733.0,82.14270606]
[1694004436619,1.31346183,25734.0,25733.0,82.14270606]
[1694004437027,1.31352183,25734.0,25733.0,82.14270606]
[1694004437359,1.31358183,25734.0,25733.0,82.14270606]
[1694004437580,1.31310183,25734.0,25733.0,82.14270606]
[1694004438085,1.31208183,25734.0,25733.0,82.14270606]
[1694004438287,1.31382183,25734.0,25733.0,82.14270606]
[1694004438507,1.30950183,25734.0,25733.0,82.14270606]
[1694004438779,1.30962183,25734.0,25733.0,82.14270606]
[1694004439339,1.31004183,25734.0,25733.0,82.14270606]
[1694004439749,1.31148183,25734.0,25733.0,82.91991806]
[1694004439887,1.30956183,25734.0,25733.0,82.91991806]
[1694004440091,1.30950183,25734.0,25733.0,82.14270606]
[1694004440294,1.31250183,25734.0,25733.0,82.14270606]
[1694004440490,1.31142183,25734.0,25733.0,82.14270606]
[1694004440700,1.30920183,25734.0,25733.0,82.14270606]
[1694004440903,1.30932183,25734.0,25733.0,82.14270606]
[1694004441260,1.02934161,25734.0,25733.0,82.14270606]
[1694004441461,1.02928161,25734.0,25733.0,82.14270606]
[1694004441659,1.03024161,25734.0,25733.0,82.14270606]
[1694004441968,1.03072161,25734.0,25733.0,82.14270606]
[1694004442110,1.03060161,25734.0,25733.0,82.14270606]
[1694004442306,1.03126161,25734.0,25733.0,82.14270606]
[1694004442741,1.03564161,25734.0,25733.0,82.14270606]
[1694004442909,1.03642161,25734.0,25733.0,82.14270606]
[1694004443107,1.03642161,25734.0,25733.0,82.26350606]
[1694004443108,1.03648161,25734.0,25733.0,82.26350606]
[1694004443312,1.03654161,25734.0,25733.0,82.26350606]
[1694004443515,1.03762161,25734.0,25733.0,82.26350606]
[1694004443771,1.03756161,25734.0,25733.0,82.26350606]
[1694004443955,1.03426161,25734.0,25733.0,82.26350606]
[1694004444132,1.03948161,25734.0,25733.0,82.26350606]
[1694004444340,1.04698161,25734.0,25733.0,81.48629406]
[1694004444537,1.78146772,25734.0,25733.0,81.48629406]
[1694004444734,1.78134772,25734.0,25733.0,81.48629406]
[1694004444939,1.77852772,25734.0,25733.0,81.48629406]
[1694004445245,1.78410772,25734.0,25733.0,81.48629406]
[1694004445469,1.78314772,25734.0,25733.0,81.48629406]
[1694004445622,1.78476772,25734.0,25733.0,81.48629406]
[1694004445823,1.78482772,25734.0,25733.0,81.48629406]
[1694004446069,1.78476772,25734.0,25733.0,81.36549406]
[1694004446439,1.78428772,25734.0,25733.0,81.36549406]
[1694004446592,1.78308772,25734.0,25733.0,81.36549406]
[1694004446790,1.78302772,25734.0,25733.0,81.36549406]
[1694004446992,1.78122772,25734.0,25733.0,81.36549406]
[1694004447194,1.78026772,25734.0,25733.0,81.36549406]
[1694004447529,1.77780772,25734.0,25733.0,81.36549406]
[1694004447743,1.77702772,25734.0,25733.0,81.36549406]
[1694004447947,1.77804772,25734.0,25733.0,81.36549406]
[1694004448162,1.77870772,25734.0,25733.0,81.36549406]
[1694004448318,1.77912772,25734.0,25733.0,81.36549406]
[1694004448518,1.77906772,25734.0,25733.0,81.36549406]
[1694004448723,1.77786772,25734.0,25733.0,81.36549406]
[1694004449125,1.77774772,25734.0,25733.0,81.36549406]
[1694004449709,1.77762772,25734.0,25733.0,81.36549406]
[1694004449912,1.77732772,25734.0,25733.0,81.36549406]
[1694004450505,1.77648772,25734.0,25733.0,81.36549406]
[1694004450735,1.77720772,25734.0,25733.0,81.36549406]
[1694004450942,1.77570772,25734.0,25733.0,81.36549406]
[1694004451147,2.0920678,25734.0,25733.0,81.36549406]
[1694004451329,2.0944078,25734.0,25733.0,81.36549406]
[1694004451543,2.0959678,25734.0,25733.0,81.36549406]
[1694004451769,2.0966278,25734.0,25733.0,81.36549406]
[1694004452151,2.0967478,25734.0,25733.0,81.36549406]
[1694004452307,2.0969878,25734.0,25733.0,81.36549406]
[1694004452653,2.0977678,25734.0,25733.0,81.36549406]
[1694004452785,2.0978278,25734.0,25733.0,81.36549406]
[1694004452983,2.0990278,25734.0,25733.0,81.36549406]
[1694004453189,2.0992078,25734.0,25733.0,81.36549406]
[1694004453393,4.13719072,25734.0,25733.0,81.36549406]
[1694004453657,4.29043072,25734.0,25733.0,81.36549406]
[1694004453861,4.29187072,25734.0,25733.0,81.36549406]
[1694004454057,4.29103072,25734.0,25733.0,81.36549406]
[1694004454276,4.29031072,25734.0,25733.0,81.36549406]
[1694004454413,4.29247072,25734.0,25733.0,81.36549406]
[1694004454633,4.15057072,25734.0,25733.0,81.36549406]
[1694004454830,4.14997072,25734.0,25733.0,81.36549406]
[1694004455016,4.28491072,25734.0,25733.0,81.36549406]
[1694004455250,4.28959072,25734.0,25733.0,81.36549406]
[1694004455453,4.28659072,25734.0,25733.0,81.36549406]
[1694004455650,4.28587072,25734.0,25733.0,81.36549406]
[1694004455910,4.15123072,25734.0,25733.0,81.36549406]
[1694004456114,4.28527072,25734.0,25733.0,81.36549406]
[1694004456328,4.29547072,25734.0,25733.0,81.36549406]
[1694004456510,4.29535072,25734.0,25733.0,81.36549406]
[1694004456693,4.29547072,25734.0,25733.0,81.36549406]
[1694004456900,4.48563072,25734.0,25733.0,81.36549406]
[1694004457095,4.88944687,25734.0,25733.0,81.36549406]
[1694004457352,4.88710687,25734.0,25733.0,81.36166089]
[1694004457551,4.88080687,25734.0,25733.0,81.36166089]
[1694004457753,4.88764687,25734.0,25733.0,81.16731952]
[1694004457988,4.88494687,25734.0,25733.0,81.01038245]
[1694004458272,5.07473001,25734.0,25733.0,81.01038245]
[1694004458471,5.07401001,25734.0,25733.0,81.01038245]
[1694004458668,5.07023001,25734.0,25733.0,80.81604108]
[1694004458844,4.94529386,25734.0,25733.0,80.81604108]
[1694004459053,4.94439386,25734.0,25733.0,80.81604108]
[1694004459251,4.75191072,25734.0,25733.0,80.81604108]
[1694004459456,4.75605072,25734.0,25733.0,80.81604108]
[1694004459652,4.75569072,25734.0,25733.0,80.81604108]
[1694004459808,4.75497072,25734.0,25733.0,80.81604108]
[1694004460013,4.75407072,25734.0,25733.0,80.62169971]
[1694004460384,4.74777072,25734.0,25733.0,80.42735834]
[1694004460612,4.73967072,25734.0,25733.0,80.42735834]
[1694004460744,4.74849072,25734.0,25733.0,80.42735834]
[1694004461102,4.74939072,25734.0,25733.0,80.42735834]
[1694004461254,4.74417072,25734.0,25733.0,80.42735834]
[1694004461457,4.74417072,25734.0,25733.0,80.23301697]
[1694004461458,4.74381072,25734.0,25733.0,80.23301697]
[1694004461672,4.74435072,25734.0,25733.0,80.23301697]
[1694004461875,4.73895072,25734.0,25733.0,80.23301697]
[1694004462080,4.52379072,25734.0,25733.0,80.23301697]
[1694004462431,4.51923072,25734.0,25733.0,80.23301697]
[1694004462643,4.51659072,25734.0,25733.0,80.23301697]
[1694004462852,4.46163072,25734.0,25733.0,80.0386756]
[1694004462987,4.47531072,25734.0,25733.0,79.84433423]
[1694004463364,4.47111072,25734.0,25733.0,79.84433423]
[1694004463728,4.46859072,25734.0,25733.0,79.84433423]
[1694004463979,4.46835072,25734.0,25733.0,79.84433423]
[1694004464210,4.46739072,25734.0,25733.0,79.64999286]
[1694004464463,4.46703072,25734.0,25733.0,79.64999286]
[1694004464747,4.46823072,25734.0,25733.0,79.64999286]
[1694004465035,2.47552772,25734.0,25733.0,80.42720486]
[1694004465319,2.65816772,25734.0,25733.0,81.20441686]
[1694004465788,2.65684772,25734.0,25733.0,80.23286349]
[1694004465795,2.65558772,25734.0,25733.0,80.23286349]
[1694004466064,2.65894772,25734.0,25733.0,80.03852212]
[1694004466320,2.68218772,25734.0,25733.0,80.81573412]
[1694004466580,2.67252772,25734.0,25733.0,80.81573412]
[1694004466908,2.67774772,25734.0,25733.0,80.62139275]
[1694004467130,2.67876772,25734.0,25733.0,80.62139275]
[1694004467331,2.67804772,25734.0,25733.0,80.62139275]
[1694004467534,2.67822772,25734.0,25733.0,80.62139275]
[1694004467737,2.67846772,25734.0,25733.0,80.62139275]
[1694004467947,1.97882772,25734.0,25733.0,80.62139275]
[1694004468097,1.94692161,25734.0,25733.0,80.58536102]
[1694004468303,1.94422161,25734.0,25733.0,80.58536102]
[1694004468515,1.94632161,25734.0,25733.0,80.58536102]
[1694004468710,1.94440161,25734.0,25733.0,80.58536102]
[1694004468936,1.95592161,25734.0,25733.0,80.58536102]
[1694004469281,1.95550161,25734.0,25733.0,79.80814902]
[1694004469495,1.98782772,25734.0,25733.0,79.80814902]
[1694004469698,1.98788772,25734.0,25733.0,79.80814902]
[1694004469906,2.68812772,25734.0,25733.0,79.80814902]
[1694004470099,2.68872772,25734.0,25733.0,79.80814902]
[1694004470382,2.68764772,25734.0,25733.0,79.80814902]
[1694004470583,2.68836772,25734.0,25733.0,79.80814902]
[1694004470737,2.68878772,25734.0,25733.0,79.80814902]
[1694004470948,2.68854772,25734.0,25733.0,79.03093702]
[1694004471137,1.98866772,25734.0,25733.0,79.03093702]
[1694004471464,1.98680772,25734.0,25733.0,79.03093702]
[1694004471666,1.98578772,25734.0,25733.0,79.03093702]
[1694004471877,1.98518772,25734.0,25733.0,79.03093702]
[1694004472063,1.97834772,25734.0,25733.0,80.58536102]
[1694004472265,1.93834161,25734.0,25733.0,80.58536102]
[1694004472471,1.93840161,25734.0,25733.0,80.58536102]
[1694004472670,1.93954161,25734.0,25733.0,80.58536102]
[1694004472871,1.93894161,25734.0,25733.0,80.58536102]
[1694004473068,1.93918161,25734.0,25733.0,80.58536102]
[1694004473323,1.94170161,25734.0,25733.0,80.58536102]
[1694004473708,1.94182161,25734.0,25733.0,80.58536102]
[1694004473907,1.94164161,25734.0,25733.0,80.58536102]
[1694004474103,1.94122161,25734.0,25733.0,80.58536102]
[1694004474373,1.94158161,25734.0,25733.0,80.58536102]
[1694004474584,1.94338161,25734.0,25733.0,80.58536102]
[1694004474774,1.94038161,25734.0,25733.0,80.58536102]
[1694004474972,1.93984161,25734.0,25733.0,80.58536102]
[1694004475116,1.94080161,25734.0,25733.0,80.58536102]
[1694004475317,1.94086161,25734.0,25733.0,80.58536102]
[1694004475514,1.94602161,25734.0,25733.0,79.80814902]
[1694004475719,1.94704161,25734.0,25733.0,79.03093702]
[1694004475915,1.95250161,25734.0,25733.0,79.03093702]
[1694004476144,1.99226772,25734.0,25733.0,79.03093702]
[1694004476417,1.99202772,25734.0,25733.0,79.03093702]
[1694004476614,1.99262772,25734.0,25733.0,79.03093702]
[1694004476864,2.00120772,25734.0,25733.0,79.03093702]
[1694004477188,3.49038872,25734.0,25733.0,79.03093702]
[1694004477380,3.49188872,25734.0,25733.0,79.03093702]
[1694004477765,3.49170872,25734.0,25733.0,79.03093702]
[1694004477939,3.49218872,25734.0,25733.0,79.03093702]
[1694004478136,3.49212872,25734.0,25733.0,79.03093702]
[1694004478362,3.49266872,25734.0,25733.0,79.03093702]
[1694004478594,3.49218872,25734.0,25733.0,79.03093702]
[1694004478787,3.49278872,25734.0,25733.0,79.03093702]
[1694004479028,3.49554872,25734.0,25733.0,79.03093702]
[1694004479219,3.49536872,25734.0,25733.0,79.03093702]
[1694004479393,3.49488872,25734.0,25733.0,79.03093702]
[1694004479609,3.49494872,25734.0,25733.0,79.03093702]
[1694004479757,3.49422872,25734.0,25733.0,79.03093702]
[1694004479958,3.49476872,25734.0,25733.0,79.03093702]
[1694004480153,3.49464872,25734.0,25733.0,79.03093702]
[1694004480361,3.49458872,25734.0,25733.0,79.03093702]
[1694004480588,4.40808972,25734.0,25733.0,79.03093702]
[1694004480789,4.40796972,25734.0,25733.0,79.03093702]
[1694004481004,4.27002972,25734.0,25733.0,79.03093702]
[1694004481372,4.27554972,25734.0,25733.0,79.03093702]
[1694004481551,4.27560972,25734.0,25733.0,79.03093702]
[1694004481732,4.41336972,25734.0,25733.0,79.03093702]
[1694004481934,4.21794972,25734.0,25733.0,79.03093702]
[1694004482138,4.21890972,25734.0,25733.0,79.03093702]
[1694004482338,4.40930972,25734.0,25733.0,79.03093702]
[1694004482541,4.27232972,25734.0,25733.0,79.03093702]
[1694004482743,4.26878972,25734.0,25733.0,79.03093702]
[1694004482986,3.48812872,25734.0,25733.0,79.03093702]
[1694004483148,3.47918872,25734.0,25733.0,79.03093702]
[1694004483350,3.47876872,25734.0,25733.0,79.03093702]
[1694004483522,3.47864872,25734.0,25733.0,79.03093702]
[1694004483722,2.70146772,25734.0,25733.0,79.03093702]
[1694004483929,2.68952772,25734.0,25733.0,80.70616102]
[1694004484129,2.66408772,25734.0,25733.0,81.48337302]
[1694004484325,2.66294772,25734.0,25733.0,81.48337302]
[1694004484559,2.66354772,25734.0,25733.0,81.48337302]
[1694004484785,2.66180772,25734.0,25733.0,81.48337302]
[1694004484941,2.67002772,25734.0,25733.0,81.48337302]
[1694004485142,2.66978772,25734.0,25733.0,81.48337302]
[1694004485520,2.66978772,25734.0,25733.0,80.70616102]
[1694004485521,1.98808772,25734.0,25733.0,80.70616102]
[1694004485727,1.96488161,25734.0,25733.0,79.80814902]
[1694004485933,1.97310161,25734.0,25733.0,79.03093702]
[1694004486148,2.00500772,25734.0,25733.0,79.03093702]
[1694004486371,2.00404772,25734.0,25733.0,79.03093702]
[1694004486589,2.00890772,25734.0,25733.0,79.03093702]
[1694004486746,2.70812772,25734.0,25733.0,79.03093702]
[1694004486945,2.70800772,25734.0,25733.0,79.03093702]
[1694004487169,2.70788772,25734.0,25733.0,79.03093702]
[1694004487377,2.70800772,25734.0,25733.0,79.03093702]
[1694004487543,2.71082772,25734.0,25733.0,79.03093702]
[1694004487748,3.49058872,25734.0,25733.0,79.03093702]
[1694004488118,3.48932872,25734.0,25733.0,79.03093702]
[1694004488352,3.48914872,25734.0,25733.0,79.03093702]
[1694004488555,3.48926872,25734.0,25733.0,79.03093702]
[1694004488758,3.48902872,25734.0,25733.0,79.03093702]
[1694004489036,3.48890872,25734.0,25733.0,79.03093702]
[1694004489245,3.48740872,25734.0,25733.0,79.03093702]
[1694004489446,3.48746872,25734.0,25733.0,79.03093702]
[1694004489737,3.48824872,25734.0,25733.0,79.03093702]
[1694004489898,3.48710872,25734.0,25733.0,79.03093702]
[1694004490093,3.48686872,25734.0,25733.0,79.03093702]
[1694004490295,3.48410872,25734.0,25733.0,79.03093702]
[1694004490499,3.48356872,25734.0,25733.0,79.03093702]
[1694004490697,3.47858872,25734.0,25733.0,79.03093702]
[1694004490900,3.47810872,25734.0,25733.0,79.03093702]
[1694004491102,3.47834872,25734.0,25733.0,79.03093702]
[1694004491304,3.47810872,25734.0,25733.0,79.03093702]
[1694004491504,3.47780872,25734.0,25733.0,79.03093702]
[1694004491679,3.47774872,25734.0,25733.0,79.03093702]
[1694004491879,3.47828872,25734.0,25733.0,79.03093702]
[1694004492215,3.47750872,25734.0,25733.0,79.03093702]
[1694004492330,3.47738872,25734.0,25733.0,79.03093702]
[1694004492738,3.47744872,25734.0,25733.0,79.03093702]
[1694004493000,3.47720872,25734.0,25733.0,79.03093702]
[1694004493365,3.47714872,25734.0,25733.0,79.03093702]
[1694004493541,3.47696872,25734.0,25733.0,79.03093702]
[1694004493953,2.69996772,25734.0,25733.0,79.03093702]
[1694004494149,2.69636772,25734.0,25733.0,79.03093702]
[1694004494573,2.69540772,25734.0,25733.0,79.03093702]
[1694004494819,2.69606772,25734.0,25733.0,79.03093702]
[1694004495016,2.69672772,25734.0,25733.0,79.03093702]
[1694004495216,2.69918772,25734.0,25733.0,79.03093702]
[1694004495447,3.47762872,25734.0,25733.0,79.03093702]
[1694004495621,3.48416872,25734.0,25733.0,79.03093702]
[1694004496005,3.48410872,25734.0,25733.0,79.03093702]
[1694004496188,3.48404872,25734.0,25733.0,79.03093702]
[1694004496389,3.48398872,25734.0,25733.0,79.03093702]
[1694004496614,3.48416872,25734.0,25733.0,79.03093702]
[1694004496815,3.48476872,25734.0,25733.0,79.03093702]
[1694004497079,3.48482872,25734.0,25733.0,79.03093702]
[1694004497230,3.48476872,25734.0,25733.0,79.03093702]
[1694004497567,3.47648872,25734.0,25733.0,79.03093702]
[1694004497767,3.47642872,25734.0,25733.0,79.03093702]
[1694004498286,3.47648872,25734.0,25733.0,79.03093702]
[1694004498577,3.47672872,25734.0,25733.0,79.03093702]
[1694004498780,3.47684872,25734.0,25733.0,79.03093702]
[1694004499071,3.47672872,25734.0,25733.0,79.03093702]
[1694004499276,3.47648872,25734.0,25733.0,79.03093702]
[1694004499690,3.47654872,25734.0,25733.0,79.03093702]
[1694004500083,3.47648872,25734.0,25733.0,79.03093702]
[1694004500279,3.47654872,25734.0,25733.0,79.03093702]
[1694004500916,3.47648872,25734.0,25733.0,79.03093702]
[1694004501235,3.47642872,25734.0,25733.0,79.03093702]
[1694004501436,3.47648872,25734.0,25733.0,79.03093702]
[1694004501639,3.47642872,25734.0,25733.0,79.03093702]
[1694004502044,3.47630872,25734.0,25733.0,79.03093702]
[1694004502267,3.47654872,25734.0,25733.0,79.03093702]
[1694004502632,3.47648872,25734.0,25733.0,79.03093702]
[1694004502830,3.47636872,25734.0,25733.0,79.03093702]
[1694004503157,3.47666872,25734.0,25733.0,79.03093702]
[1694004503358,3.47642872,25734.0,25733.0,79.03093702]
[1694004503800,3.47672872,25734.0,25733.0,79.03093702]
[1694004504255,3.47666872,25734.0,25733.0,79.03093702]
[1694004504450,3.47642872,25734.0,25733.0,79.03093702]
[1694004504591,3.47744872,25734.0,25733.0,79.03093702]
[1694004504804,1.98538772,25734.0,25733.0,79.03093702]
[1694004505006,1.97872772,25734.0,25733.0,79.80814902]
[1694004505213,1.94568161,25734.0,25733.0,79.80814902]
[1694004505410,1.94556161,25734.0,25733.0,79.80814902]
[1694004505612,1.94586161,25734.0,25733.0,79.80814902]
[1694004505856,1.94784161,25734.0,25733.0,79.80814902]
[1694004506054,1.94856161,25734.0,25733.0,79.80814902]
[1694004506412,1.94874161,25734.0,25733.0,79.80814902]
[1694004506620,1.94898161,25734.0,25733.0,79.80814902]
[1694004506847,2.26410536,25734.0,25733.0,79.80814902]
[1694004507045,2.29796524,25734.0,25733.0,79.03093702]
[1694004507280,2.30156524,25734.0,25733.0,79.03093702]
[1694004507425,5.62940824,25734.0,25733.0,79.29740996]
[1694004507628,5.67524824,25734.0,25733.0,79.29740996]
[1694004507835,5.36072449,25734.0,25733.0,79.29740996]
[1694004508021,5.22084449,25734.0,25733.0,79.29740996]
[1694004508224,5.21868449,25734.0,25733.0,79.29740996]
[1694004508422,4.44102349,25734.0,25733.0,79.29740996]
[1694004508627,4.27686349,25734.0,25733.0,79.29740996]
[1694004508834,4.27644349,25734.0,25733.0,79.29740996]
[1694004509038,4.40922349,25734.0,25733.0,79.29740996]
[1694004509238,4.27626349,25734.0,25733.0,79.29740996]
[1694004509435,2.72208149,25734.0,25733.0,79.29740996]
[1694004509662,2.70504149,25734.0,25733.0,79.29740996]
[1694004509864,3.48906249,25734.0,25733.0,79.29740996]
[1694004510201,4.26612349,25734.0,25733.0,79.29740996]
[1694004510410,4.26204349,25734.0,25733.0,79.29740996]
[1694004510588,4.26144349,25734.0,25733.0,79.29740996]
[1694004510789,4.26276349,25734.0,25733.0,79.29740996]
[1694004510992,4.26288349,25734.0,25733.0,79.29740996]
[1694004511248,4.26294349,25734.0,25733.0,79.29740996]
[1694004511608,3.48054249,25734.0,25733.0,79.03093702]
[1694004511803,3.48024249,25734.0,25733.0,79.03093702]
[1694004512003,3.47700249,25734.0,25733.0,79.03093702]
[1694004512208,3.47718249,25734.0,25733.0,79.03093702]
[1694004512422,3.47556249,25734.0,25733.0,79.03093702]
[1694004512622,2.69844149,25734.0,25733.0,79.03093702]
[1694004512824,2.69796149,25734.0,25733.0,79.03093702]
[1694004513046,2.68020149,25734.0,25733.0,79.80814902]
[1694004513256,2.64292161,25734.0,25733.0,80.58536102]
[1694004513454,2.64310161,25734.0,25733.0,80.58536102]
[1694004513632,2.64358161,25734.0,25733.0,80.58536102]
[1694004513846,2.65036161,25734.0,25733.0,79.80814902]
[1694004514051,2.67966149,25734.0,25733.0,79.80814902]
[1694004514251,2.68278149,25734.0,25733.0,79.03093702]
[1694004514599,2.68356149,25734.0,25733.0,79.03093702]
[1694004514790,2.68386149,25734.0,25733.0,79.03093702]
[1694004514936,2.68404149,25734.0,25733.0,79.03093702]
[1694004515147,2.68416149,25734.0,25733.0,79.03093702]
[1694004515372,2.68500149,25734.0,25733.0,79.03093702]
[1694004515568,2.68608149,25734.0,25733.0,79.03093702]
[1694004515726,2.68872149,25734.0,25733.0,79.03093702]
[1694004515930,2.68998149,25734.0,25733.0,79.03093702]
[1694004516152,3.46740249,25734.0,25733.0,79.03093702]
[1694004516350,3.46800249,25734.0,25733.0,79.03093702]
[1694004516617,3.66692249,25734.0,25733.0,79.03093702]
[1694004516770,3.67178249,25734.0,25733.0,79.03093702]
[1694004516973,3.67154249,25734.0,25733.0,79.03093702]
[1694004517149,3.67172249,25734.0,25733.0,79.03093702]
[1694004517376,3.67166249,25734.0,25733.0,79.03093702]
[1694004517582,3.67160249,25734.0,25733.0,79.03093702]
[1694004518335,3.66938249,25734.0,25733.0,79.03093702]
[1694004518692,3.66944249,25734.0,25733.0,79.03093702]
[1694004519475,3.67028249,25734.0,25733.0,79.03093702]
[1694004519606,3.66650249,25734.0,25733.0,79.03093702]
[1694004519806,3.66668249,25734.0,25733.0,79.03093702]
[1694004520011,3.66602249,25734.0,25733.0,79.03093702]
[1694004520230,3.66596249,25734.0,25733.0,79.03093702]
[1694004520443,3.66584249,25734.0,25733.0,79.03093702]
[1694004520609,3.66494249,25734.0,25733.0,79.03093702]
[1694004520855,2.88050149,25734.0,25733.0,79.03093702]
[1694004521067,2.88158149,25734.0,25733.0,79.03093702]
[1694004521261,2.87954149,25734.0,25733.0,79.03093702]
[1694004521443,2.88176149,25734.0,25733.0,79.03093702]
[1694004521890,2.88170149,25734.0,25733.0,79.03093702]
[1694004522043,2.88176149,25734.0,25733.0,79.03093702]
[1694004522241,2.88188149,25734.0,25733.0,79.03093702]
[1694004522615,2.88212149,25734.0,25733.0,79.03093702]
[1694004522822,2.88278149,25734.0,25733.0,79.03093702]
[1694004522998,2.18332149,25734.0,25733.0,79.03093702]
[1694004523205,2.18344149,25734.0,25733.0,79.03093702]
[1694004523425,2.18356149,25734.0,25733.0,79.03093702]
[1694004523637,2.18266149,25734.0,25733.0,79.03093702]
[1694004523839,2.18302149,25734.0,25733.0,79.03093702]
[1694004524017,2.18314149,25734.0,25733.0,79.03093702]
[1694004524236,2.18320149,25734.0,25733.0,79.03093702]
[1694004524390,2.18332149,25734.0,25733.0,79.03093702]
[1694004524812,2.18350149,25734.0,25733.0,79.03093702]
[1694004525019,4.45982349,25734.0,25733.0,79.03093702]
[1694004525363,4.46144349,25734.0,25733.0,79.03093702]
[1694004525566,4.45910349,25734.0,25733.0,79.03093702]
[1694004525765,4.45730349,25734.0,25733.0,79.03093702]
[1694004525900,4.45814349,25734.0,25733.0,79.03093702]
[1694004526109,4.45808349,25734.0,25733.0,79.03093702]
[1694004526335,4.45802349,25734.0,25733.0,79.03093702]
[1694004526685,4.45826349,25734.0,25733.0,79.03093702]
[1694004526889,4.45766349,25734.0,25733.0,79.03093702]
[1694004527039,4.45844349,25734.0,25733.0,79.03093702]
[1694004527241,4.45850349,25734.0,25733.0,79.03093702]
[1694004527469,5.40896449,25734.0,25733.0,79.03093702]
[1694004527680,5.40716449,25734.0,25733.0,79.03093702]
[1694004527928,5.40836449,25734.0,25733.0,79.03093702]
[1694004528090,5.39804449,25734.0,25733.0,79.03093702]
[1694004528287,5.39468449,25734.0,25733.0,79.03093702]
[1694004528513,5.37968449,25734.0,25733.0,79.03093702]
[1694004528778,5.37932449,25734.0,25733.0,79.03093702]
[1694004528984,5.38400449,25734.0,25733.0,79.03093702]
[1694004529173,5.37884449,25734.0,25733.0,79.03093702]
[1694004529367,4.45964349,25734.0,25733.0,79.03093702]
[1694004529578,4.45862349,25734.0,25733.0,79.03093702]
[1694004529777,4.45664349,25734.0,25733.0,79.03093702]
[1694004529924,4.45556349,25734.0,25733.0,79.03093702]
[1694004530158,3.17456095,25734.0,25733.0,79.30770663]
[1694004530355,3.17750095,25734.0,25733.0,79.30770663]
[1694004530558,3.17828095,25734.0,25733.0,79.30770663]
[1694004530758,3.17858095,25734.0,25733.0,79.30770663]
[1694004530989,2.47732095,25734.0,25733.0,79.30770663]
[1694004531183,2.47768095,25734.0,25733.0,79.30770663]
[1694004531529,2.47252095,25734.0,25733.0,79.30770663]
[1694004531720,2.43908107,25734.0,25733.0,79.30770663]
[1694004531919,2.44568107,25734.0,25733.0,79.30770663]
[1694004532133,2.49238095,25734.0,25733.0,79.30770663]
[1694004532333,2.49286095,25734.0,25733.0,79.30770663]
[1694004532542,3.19526095,25734.0,25733.0,79.30770663]
[1694004532738,3.19502095,25734.0,25733.0,79.30770663]
[1694004532941,3.19496095,25734.0,25733.0,79.30770663]
[1694004533121,3.19502095,25734.0,25733.0,79.30770663]
[1694004533320,3.19508095,25734.0,25733.0,79.30770663]
[1694004533523,3.19490095,25734.0,25733.0,79.30770663]
[1694004533718,3.19484095,25734.0,25733.0,79.30770663]
[1694004533923,3.19502095,25734.0,25733.0,79.30770663]
[1694004534325,3.19478095,25734.0,25733.0,79.30770663]
[1694004534502,3.19466095,25734.0,25733.0,79.30770663]
[1694004534709,3.19442095,25734.0,25733.0,79.30770663]
[1694004534900,3.19358095,25734.0,25733.0,79.30770663]
[1694004535152,2.49190095,25734.0,25733.0,79.30770663]
[1694004535304,2.49220095,25734.0,25733.0,79.30770663]
[1694004535483,2.49256095,25734.0,25733.0,79.30770663]
[1694004535691,2.49310095,25734.0,25733.0,79.30770663]
[1694004535895,2.49358095,25734.0,25733.0,79.30770663]
[1694004536106,2.49286095,25734.0,25733.0,79.30770663]
[1694004536330,2.49292095,25734.0,25733.0,79.30770663]
[1694004536624,2.49256095,25734.0,25733.0,79.30770663]
[1694004536843,2.48986095,25734.0,25733.0,79.30770663]
[1694004537012,2.48992095,25734.0,25733.0,79.30770663]
[1694004537452,2.48980095,25734.0,25733.0,79.30770663]
[1694004537658,2.46628095,25734.0,25733.0,79.30770663]
[1694004537966,2.43296107,25734.0,25733.0,79.30770663]
[1694004538173,2.36288107,25734.0,25733.0,79.30770663]
[1694004538527,2.41314107,25734.0,25733.0,79.30770663]
[1694004538724,2.43314107,25734.0,25733.0,79.30770663]
[1694004538953,2.43476107,25734.0,25733.0,79.30770663]
[1694004539273,2.43488107,25734.0,25733.0,79.30770663]
[1694004539408,2.43554107,25734.0,25733.0,79.30770663]
[1694004539620,2.43578107,25734.0,25733.0,79.30770663]
[1694004539824,2.43584107,25734.0,25733.0,79.30770663]
[1694004540023,2.43590107,25734.0,25733.0,79.30770663]
[1694004540263,2.43686107,25734.0,25733.0,79.30770663]
[1694004540471,2.43608107,25734.0,25733.0,79.30770663]
[1694004540643,2.43620107,25734.0,25733.0,79.30770663]
[1694004540864,2.43824107,25734.0,25733.0,79.30770663]
[1694004541066,2.25018107,25734.0,25733.0,79.30770663]
[1694004541268,2.28332095,25734.0,25733.0,79.30770663]
[1694004541527,2.28350095,25734.0,25733.0,79.30770663]